fUSD/lending_fUSD_20250327
["ID","MTS","AMOUNT","RATE_DAILY","PERIOD"]
[356752341,1743111041231,-9857.65345533,0.0001903,2]
[356752342,1743111041240,-9005.72,0.00019082,2]
[356752343,1743111041249,-151.0,0.00019082,2]
[356752344,1743111041266,-151.0,0.00019082,2]
[356752345,1743111041278,-151.0,0.00019082,2]
[356752346,1743111041287,-151.0,0.00019082,2]
[356752347,1743111041298,-174.200362,0.00019082,2]
[356752348,1743111041490,-388.577559,0.00019082,2]
[356752349,1743111041499,-388.577559,0.00019082,2]
[356752350,1743111041508,-151.0,0.00019082,2]
[356752351,1743111041518,-174.912622,0.00019082,2]
[356752352,1743111041527,-174.912622,0.00019082,2]
[356752353,1743111041537,-151.0,0.00019082,2]
[356752354,1743111041547,-151.0,0.00019082,2]
[356752355,1743111041557,-151.0,0.00019082,2]
[356752356,1743111041567,-151.0,0.00019082,2]
[356752357,1743111041576,-151.0,0.00019082,2]
[356752358,1743111041586,-151.0,0.00019082,2]
[356752359,1743111041595,-400.523843,0.00019082,2]
[356752360,1743111041605,-400.523843,0.00019082,2]
[356752361,1743111041614,-151.0,0.00019082,2]
[356752362,1743111041626,-151.0,0.00019082,2]
[356752363,1743111041635,-154.686653,0.00019082,2]
[356752364,1743111041644,-151.0,0.00019082,2]
[356752365,1743111041654,-676.549049,0.00019082,2]
[356752366,1743111041665,-151.0,0.00019082,2]
[356752367,1743111041674,-151.0,0.00019082,2]
[356752368,1743111041683,-151.0,0.00019082,2]
[356752369,1743111041694,-151.0,0.00019082,2]
[356752370,1743111041703,-23900.0,0.00019095,2]
[356752371,1743111041713,-151.0,0.00019095,2]
[356752372,1743111041723,-151.0,0.0001913,2]
[356752373,1743111041733,-152.546926,0.0001913,2]
[356752374,1743111041742,-151.0,0.0001913,2]
[356752375,1743111041751,-388.577559,0.0001913,2]
[356752376,1743111041761,-388.577559,0.0001913,2]
[356752377,1743111041770,-151.0,0.0001913,2]
[356752378,1743111041780,-174.912622,0.0001913,2]
[356752379,1743111041791,-174.912622,0.0001913,2]
[356752380,1743111041800,-151.0,0.0001913,2]
[356752381,1743111041809,-151.0,0.0001913,2]
[356752382,1743111041818,-151.0,0.0001913,2]
[356752383,1743111041828,-151.0,0.0001913,2]
[356752384,1743111041837,-400.523843,0.0001913,2]
[356752385,1743111041846,-400.523843,0.0001913,2]
[356752386,1743111041855,-151.0,0.0001913,2]
[356752387,1743111041864,-151.0,0.0001913,2]
[356752388,1743111041873,-151.0,0.0001913,2]
[356752389,1743111041886,-676.549049,0.0001913,2]
[356752390,1743111041897,-151.0,0.0001913,2]
[356752391,1743111041907,-151.0,0.0001913,2]
[356752392,1743111041916,-151.0,0.0001913,2]
[356752393,1743111041926,-151.0,0.0001913,2]
[356752394,1743111041936,-151.22,0.00019226,2]
[356752395,1743111041946,-151.22,0.00019266,2]
[356752396,1743111041956,-151.22,0.00019307,2]
[356752397,1743111041966,-151.22,0.00019347,2]
[356752398,1743111041976,-151.22,0.00019388,2]
[356752399,1743111041986,-151.22,0.00019428,2]
[356752400,1743111041995,-151.22,0.00019469,2]
[356752401,1743111042005,-151.22,0.00019509,2]
[356752402,1743111042014,-151.22,0.00019549,2]
[356752403,1743111042024,-151.22,0.0001959,2]
[356752404,1743111042033,-151.22,0.0001963,2]
[356752405,1743111042043,-151.22,0.00019671,2]
[356752406,1743111042053,-151.22,0.00019711,2]
[356752407,1743111042062,-151.22,0.00019752,2]
[356752408,1743111042072,-151.22,0.00019792,2]
[356752409,1743111042082,-151.22,0.00019833,2]
[356752410,1743111042091,-151.22,0.00019873,2]
[356752411,1743111042100,-151.0,0.0001991,2]
[356752412,1743111042109,-443.7,0.0001991,2]
[356752413,1743111042120,-648.85,0.0001991,2]
[356752414,1743111042129,-443.7,0.0001991,2]
[356752415,1743111042139,-443.7,0.0001991,2]
[356752416,1743111042148,-443.7,0.0001991,2]
[356752417,1743111042157,-443.7,0.0001991,2]
[356752418,1743111042171,-443.7,0.0001991,2]
[356752419,1743111042180,-443.7,0.0001991,2]
[356752420,1743111042189,-441.3,0.0001991,2]
[356752421,1743111042199,-151.22,0.00019914,2]
[356752422,1743111042208,-151.22,0.00019954,2]
[356752423,1743111042217,-151.22,0.00019995,2]
[356752424,1743111042227,-453.79779083,0.0002,4]
[356752425,1743111042237,-150.99,0.00020145,2]
[356752426,1743111042246,-153.11,0.00020195,2]
[356752427,1743111042255,-885.57,0.00020195,2]
[356752428,1743111042265,-373.89,0.00020195,2]
[356752429,1743111042275,-150.0,0.00020195,2]
[356752430,1743111042283,-150.0,0.00020195,2]
[356752431,1743111042294,-150.0,0.00020195,2]
[356752432,1743111042304,-150.0,0.00020195,2]
[356752433,1743111042313,-150.0,0.00020375,2]
[356752434,1743111042322,-1000.0,0.0002074,2]
[356752435,1743111042332,-1144.32,0.00020889,2]
[356752436,1743111042342,-150.0,0.00021745,2]
[356752437,1743111042351,-443.7,0.00021821,2]
[356752438,1743111042361,-443.7,0.00021821,2]
[356752439,1743111042371,-197.65,0.00021821,2]
[356752440,1743111042380,-1130.57047944,0.00021927,2]
[356752441,1743111042390,-1422.0,0.0002198,2]
[356752442,1743111042400,-572.0,0.0002198,2]
[356752443,1743111042409,-1056.335,0.0002198,2]
[356752444,1743111042419,-788.0,0.0002198,2]
[356752445,1743111042429,-907.0,0.0002198,2]
[356752446,1743111042439,-4088.0,0.0002198,2]
[356752447,1743111042449,-1432.0,0.0002198,2]
[356752448,1743111042458,-542.0,0.0002198,2]
[356752449,1743111042468,-151.0,0.0002198,7]
[356752450,1743111042478,-151.0,0.0002198,7]
[356752451,1743111042487,-388.577559,0.0002198,7]
[356752452,1743111042497,-388.577559,0.0002198,7]
[356752453,1743111042506,-174.912622,0.0002198,7]
[356752454,1743111042516,-174.912622,0.0002198,7]
[356752455,1743111042525,-151.0,0.0002198,7]
[356752456,1743111042535,-151.0,0.0002198,7]
[356752457,1743111042545,-1116.0,0.0002198,2]
[356752458,1743111042554,-151.0,0.0002198,7]
[356752459,1743111042568,-400.523843,0.0002198,7]
[356752460,1743111042578,-400.523843,0.0002198,7]
[356752461,1743111042587,-151.0,0.0002198,7]
[356752462,1743111042596,-151.0,0.0002198,7]
[356752463,1743111042606,-151.0,0.0002198,7]
[356752464,1743111042616,-676.549049,0.0002198,7]
[356752465,1743111042629,-151.0,0.0002198,7]
[356752466,1743111042638,-151.0,0.0002198,7]
[356752467,1743111042648,-151.0,0.0002198,7]
[356752468,1743111042657,-151.0,0.0002198,7]
[356752469,1743111042669,-642.0,0.0002198,2]
[356752470,1743111042679,-2038.0,0.0002198,2]
[356752471,1743111042689,-151.0,0.0002198,2]
[356752472,1743111042699,-151.0,0.0002198,7]
[356752473,1743111042708,-1282.0,0.0002198,2]
[356752474,1743111042718,-3944.0,0.0002198,2]
[356752475,1743111042727,-151.0,0.0002206,7]
[356752476,1743111042737,-9857.65345531,0.0002211,2]
[356752477,1743111042746,-1000.0,0.00023044,2]
[356752478,1743111042757,-1144.32,0.00023153,2]
[356752479,1743111042767,-628.04,0.00023836,2]
[356752480,1743111042776,-405.93580724,0.00023898,2]
[356752481,1743111042785,-5000.00872562,0.00024,5]
[356752482,1743111042795,-309.74,0.00024287,2]
[356752483,1743111042804,-154.28,0.00024287,2]
[356752484,1743111042813,-304.84,0.00024287,2]
[356752485,1743111042822,-346.39,0.00024287,2]
[356752486,1743111042832,-150.0,0.00024287,2]
[356752487,1743111042841,-443.07,0.00024287,2]
[356752488,1743111042850,-346.64,0.00024287,2]
[356752489,1743111042859,-170.04,0.00024287,2]
[356752490,1743111042869,-150.0,0.00024287,2]
[356752491,1743111042879,-150.0,0.00024287,2]
[356752492,1743111042889,-150.0,0.00024287,2]
[356752493,1743111042898,-443.07,0.00024287,2]
[356752494,1743111042907,-346.64,0.00024287,2]
[356752495,1743111042917,-150.0,0.00024287,2]
[356752496,1743111042927,-150.0,0.00024287,2]
[356752497,1743111042936,-150.0,0.00024287,2]
[356752498,1743111042946,-150.0,0.00024287,2]
[356752499,1743111042955,-443.07,0.00024287,2]
[356752500,1743111042965,-150.0,0.00024287,2]
[356752501,1743111042975,-346.64,0.00024287,2]
[356752502,1743111042984,-150.0,0.00024287,2]
[356752503,1743111042994,-150.0,0.00024287,2]
[356752505,1743111043004,-443.07,0.00024287,2]
[356752506,1743111043013,-150.0,0.00024287,2]
[356752507,1743111043022,-346.64,0.00024287,2]
[356752508,1743111043032,-150.0,0.00024287,2]
[356752509,1743111043041,-150.0,0.00024287,2]
[356752510,1743111043051,-150.0,0.00024287,2]
[356752511,1743111043060,-150.0,0.00024287,2]
[356752512,1743111043070,-443.07,0.00024287,2]
[356752513,1743111043080,-346.64,0.00024287,2]
[356752514,1743111043089,-443.07,0.00024287,2]
[356752515,1743111043101,-150.0,0.00024287,2]
[356752516,1743111043111,-150.0,0.00024287,2]
[356752517,1743111043121,-342.55,0.00024287,2]
[356752518,1743111043130,-150.0,0.00024287,2]
[356752519,1743111043140,-443.07,0.00024287,2]
[356752520,1743111043150,-150.0,0.00024287,2]
[356752521,1743111043160,-150.0,0.00024287,2]
[356752523,1743111043170,-150.0,0.00024287,2]
[356752524,1743111043179,-443.07,0.00024287,2]
[356752525,1743111043188,-443.07,0.00024287,2]
[356752526,1743111043198,-150.0,0.00024287,2]
[356752527,1743111043207,-151.0,0.00024287,7]
[356752528,1743111043216,-7229.80873993,0.000245,2]
[356752530,1743111043226,-388.577559,0.000245,7]
[356752532,1743111043236,-388.577559,0.000245,7]
[356752534,1743111043245,-174.912622,0.000245,7]
[356752536,1743111043255,-174.912622,0.000245,7]
[356752538,1743111043264,-151.0,0.000245,7]
[356752540,1743111043274,-151.0,0.000245,7]
[356752541,1743111043283,-197.690716,0.000245,7]
[356752544,1743111043293,-400.523843,0.000245,7]
[356752545,1743111043302,-400.523843,0.000245,7]
[356752547,1743111043311,-151.0,0.000245,7]
[356752549,1743111043320,-226.688973,0.000245,7]
[356752551,1743111043330,-676.549049,0.000245,7]
[356752553,1743111043339,-151.0,0.000245,7]
[356752555,1743111043348,-151.0,0.000245,7]
[356752556,1743111043358,-151.0,0.000245,7]
[356752557,1743111043367,-1000.0,0.00024658,2]
[356752558,1743111043377,-151.0,0.00024658,7]
[356752559,1743111043386,-151.0,0.00024658,7]
[356752560,1743111043397,-211.14,0.00024712,30]
[356752561,1743111043407,-151.0,0.000248,7]
[356752562,1743111043416,-151.0,0.000248,7]
[356752563,1743111043426,-151.0,0.000248,7]
[356752564,1743111043435,-388.577559,0.000248,7]
[356752565,1743111043445,-388.577559,0.000248,7]
[356752566,1743111043454,-174.912622,0.000248,7]
[356752567,1743111043465,-174.912622,0.000248,7]
[356752568,1743111043474,-151.0,0.000248,7]
[356752569,1743111043484,-151.0,0.000248,7]
[356752570,1743111043494,-400.523843,0.000248,7]
[356752571,1743111043503,-400.523843,0.000248,7]
[356752572,1743111043513,-676.549049,0.000248,7]
[356752573,1743111043522,-101579.402435,0.000248,2]
[356752574,1743111043532,-151.0,0.000248,7]
[356752575,1743111043543,-151.0,0.000248,7]
[356752576,1743111043552,-151.0,0.000248,7]
[356752577,1743111043562,-500.0,0.00024873,2]
[356752578,1743111043571,-16929.9004059,0.0002488,2]
[356752579,1743111043582,-300.0,0.00024889,10]
[356752580,1743111043592,-151.0,0.0002489,7]
[356752581,1743111043602,-151.0,0.0002489,7]
[356752582,1743111043611,-151.0,0.0002489,7]
[356752583,1743111043624,-388.577559,0.0002489,7]
[356752584,1743111043634,-388.577559,0.0002489,7]
[356752585,1743111043645,-174.912622,0.0002489,7]
[356752586,1743111043654,-174.912622,0.0002489,7]
[356752587,1743111043665,-151.0,0.0002489,7]
[356752588,1743111043674,-212.227452,0.0002489,7]
[356752589,1743111043684,-400.523843,0.0002489,7]
[356752590,1743111043695,-400.523843,0.0002489,7]
[356752591,1743111043704,-676.549049,0.0002489,7]
[356752592,1743111043713,-676.549049,0.0002489,7]
[356752593,1743111043722,-33859.8008118,0.0002489,2]
[356752594,1743111043732,-151.0,0.0002489,7]
[356752595,1743111043741,-150.38,0.0002489,2]
[356752596,1743111043751,-151.0,0.0002489,7]
[356752597,1743111043760,-300.0,0.00024899,10]
[356752598,1743111043770,-619.0,0.000249,2]
[356752599,1743111043779,-59771.98598668,0.000249,2]
[356752600,1743111043788,-151.0,0.000249,7]
[356752601,1743111043798,-151.0,0.000249,7]
[356752602,1743111043807,-151.0,0.000249,7]
[356752603,1743111043817,-388.577559,0.000249,7]
[356752604,1743111043826,-388.577559,0.000249,7]
[356752605,1743111043835,-174.912622,0.000249,7]
[356752606,1743111043844,-174.912622,0.000249,7]
[356752607,1743111043854,-151.0,0.000249,7]
[356752608,1743111043863,-400.523843,0.000249,7]
[356752609,1743111043875,-400.523843,0.000249,7]
[356752610,1743111043885,-676.549049,0.000249,7]
[356752611,1743111043895,-676.549049,0.000249,7]
[356752612,1743111043907,-15491.4881151,0.000249,2]
[356752613,1743111043918,-366.65819,0.000249,14]
[356752614,1743111043928,-151.0,0.000249,7]
[356752616,1743111043939,-151.0,0.000249,7]
[356752619,1743111043948,-300.0,0.00024959,10]
[356752622,1743111043958,-188.172075,0.0002496,7]
[356752625,1743111043967,-151.0,0.0002496,7]
[356752626,1743111043976,-151.0,0.0002496,7]
[356752628,1743111043986,-388.577559,0.0002496,7]
[356752629,1743111043995,-388.577559,0.0002496,7]
[356752630,1743111044005,-151.0,0.0002496,7]
[356752631,1743111044014,-151.0,0.0002496,7]
[356752632,1743111044024,-16929.9004059,0.0002496,2]
[356752633,1743111044034,-15491.4881151,0.0002496,2]
[356752634,1743111044043,-174.912622,0.0002497,7]
[356752635,1743111044052,-174.912622,0.0002497,7]
[356752636,1743111044061,-151.0,0.0002497,7]
[356752637,1743111044071,-400.523843,0.0002497,7]
[356752638,1743111044084,-400.523843,0.0002497,7]
[356752639,1743111044094,-676.549049,0.0002497,7]
[356752640,1743111044103,-676.549049,0.0002497,7]
[356752641,1743111044114,-16929.9004059,0.0002497,2]
[356752642,1743111044124,-15491.4881151,0.0002497,2]
[356752643,1743111044135,-151.0,0.0002497,7]
[356752644,1743111044144,-1422.0,0.0002498,2]
[356752645,1743111044154,-572.0,0.0002498,2]
[356752646,1743111044163,-495.912,0.0002498,2]
[356752647,1743111044172,-907.0,0.0002498,2]
[356752648,1743111044182,-4088.0,0.0002498,2]
[356752649,1743111044192,-1432.0,0.0002498,2]
[356752650,1743111044201,-542.0,0.0002498,2]
[356752651,1743111044211,-297.678745,0.0002498,7]
[356752652,1743111044333,-151.0,0.0002498,7]
[356752653,1743111044343,-388.577559,0.0002498,7]
[356752654,1743111044353,-388.577559,0.0002498,7]
[356752655,1743111044362,-1021.267,0.0002498,2]
[356752656,1743111044372,-642.0,0.0002498,2]
[356752657,1743111044381,-2038.0,0.0002498,2]
[356752658,1743111044390,-151.0,0.0002498,2]
[356752659,1743111044399,-1282.0,0.0002498,2]
[356752660,1743111044408,-3944.0,0.0002498,2]
[356752661,1743111044418,-1000.0,0.00025,2]
[356752662,1743111044427,-1000.0,0.00025,30]
[356752663,1743111044436,-250.0,0.00025,2]
[356752664,1743111044445,-219.89780956,0.00025097,10]
[356752665,1743111044454,-151.0,0.00025099,7]
[356752666,1743111044464,-388.577559,0.00025099,7]
[356752667,1743111044473,-388.57755,0.00025099,7]
[356752668,1743111044483,-400.0,0.000251,2]
[356752669,1743111044493,-174.912622,0.00025108,7]
[356752670,1743111044502,-174.912622,0.00025108,7]
[356752671,1743111044511,-151.0,0.00025108,7]
[356752672,1743111044521,-400.523843,0.00025108,7]
[356752673,1743111044531,-400.523843,0.00025108,7]
[356752674,1743111044540,-676.549049,0.00025108,7]
[356752675,1743111044550,-676.549049,0.00025108,7]
[356752676,1743111044559,-151.0,0.00025108,7]
[356752677,1743111044569,-439.87,0.00025109,2]
[356752678,1743111044578,-150.0,0.00025109,2]
[356752679,1743111044588,-249.14,0.00025109,2]
[356752680,1743111044597,-9857.65345531,0.0002519,2]
[356752681,1743111044606,-150.38,0.00025268,2]
[356752682,1743111044616,-16929.9004059,0.00025277,2]
[356752683,1743111044628,-15491.4881151,0.00025277,2]
[356752684,1743111044637,-151.0,0.00025278,7]
[356752685,1743111044646,-174.912622,0.00025287,7]
[356752686,1743111044655,-174.912613,0.00025287,7]
[356752687,1743111044666,-151.0,0.00025287,7]
[356752688,1743111044675,-400.523843,0.00025287,7]
[356752689,1743111044684,-400.523843,0.00025287,7]
[356752690,1743111044693,-676.549049,0.00025287,7]
[356752691,1743111044704,-676.549041,0.00025287,7]
[356752692,1743111044714,-1178.38,0.00025298,2]
[356752693,1743111044723,-280.0,0.000253,10]
[356752694,1743111044732,-1000.0,0.00025348,2]
[356752695,1743111044741,-302.16,0.00025405,2]
[356752696,1743111044751,-1144.32,0.00025417,2]
[356752697,1743111044760,-1130.57047944,0.00025434,2]
[356752698,1743111044770,-3049.35962809,0.00026,2]
[356752699,1743111044779,-1000.0,0.00026,2]
[356752700,1743111044788,-16929.9004059,0.0002637,2]
[356752701,1743111044798,-15491.4881151,0.0002637,2]
[356752702,1743111044807,-15491.4881151,0.0002639,2]
[356752703,1743111044816,-12224.90498872,0.000264,2]
[356752704,1743111044826,-893.40980361,0.000264,2]
[356752705,1743111044835,-16929.9004059,0.00026842,2]
[356752706,1743111044844,-195.07,0.00026849,2]
[356752707,1743111044853,-690.89,0.00026849,2]
[356752708,1743111044863,-250.0,0.00027,2]
[356752709,1743111044872,-993.33634235,0.00027,2]
[356752710,1743111044881,-300.0,0.00027,2]
[356752711,1743111044891,-400.0,0.000271,2]
[356752712,1743111044901,-3525.08,0.00027123,2]
[356752713,1743111044911,-16929.9004059,0.00027367,2]
[356752714,1743111044920,-15491.4881151,0.00027367,2]
[356752715,1743111044929,-150.38,0.00027387,2]
[356752716,1743111044939,-6164.66,0.00027397,2]
[356752717,1743111044949,-496.37,0.00027397,2]
[356752718,1743111044959,-1500.0,0.00027397,60]
[356752719,1743111044968,-192.9057558,0.000275,2]
[356752720,1743111044978,-1000.0,0.00027653,2]
[356752721,1743111044987,-1144.32,0.00027681,2]
[356752722,1743111044996,-209.0,0.0002778,2]
[356752723,1743111045006,-391.0,0.0002783,15]
[356752724,1743111045015,-160.48010354,0.0002787,2]
[356752725,1743111045025,-16929.9004059,0.0002796,2]
[356752726,1743111045034,-15491.4881151,0.0002796,2]
[356752727,1743111045043,-15491.4881151,0.0002797,2]
[356752728,1743111045053,-16929.9004059,0.0002797,2]
[356752729,1743111045062,-15491.4881151,0.0002797,2]
[356752730,1743111045072,-1422.0,0.0002798,2]
[356752731,1743111045081,-907.0,0.0002798,2]
[356752732,1743111045091,-3051.001,0.0002798,2]
[356752733,1743111045101,-1432.0,0.0002798,2]
[356752734,1743111045110,-542.0,0.0002798,2]
[356752735,1743111045119,-642.0,0.0002798,2]
[356752736,1743111045128,-2038.0,0.0002798,2]
[356752737,1743111045137,-151.0,0.0002798,2]
[356752738,1743111045147,-1282.0,0.0002798,2]
[356752739,1743111045156,-3944.0,0.0002798,2]
[356752740,1743111045165,-16929.9004059,0.0002798,2]
[356752741,1743111045174,-15491.4881151,0.0002798,2]
[356752742,1743111045183,-16929.9004059,0.0002799,2]
[356752743,1743111045193,-15491.4881151,0.0002799,2]
[356752744,1743111045203,-150.38,0.0002799,2]
[356752745,1743111045212,-36245.45910304,0.00028,14]
[356752746,1743111045221,-9857.65345531,0.0002827,2]
[356752747,1743111045231,-150.0,0.00028536,2]
[356752748,1743111045240,-150.0,0.00028638,2]
[356752749,1743111045249,-150.0,0.00028668,2]
[356752750,1743111045259,-16929.9004059,0.00028747,2]
[356752751,1743111045268,-15491.4881151,0.00028747,2]
[356752752,1743111045277,-6164.66,0.00028767,2]
[356752753,1743111045286,-16929.9004059,0.0002886,2]
[356752754,1743111045296,-15491.4881151,0.0002886,2]
[356752755,1743111045306,-7307.21835103,0.0002887,2]
[356752756,1743111045315,-1130.57047944,0.00028941,2]
[356752757,1743111045325,-150.0,0.0002895,2]
[356752758,1743111045335,-150.38,0.0002896,2]
[356752759,1743111045344,-6405.56731207,0.0002897,2]
[356752760,1743111045361,-1158.29014889,0.0002897,2]
[356752761,1743111045372,-8055.93070534,0.0002897,2]
[356752762,1743111045384,-1314.20844127,0.0002897,2]
[356752763,1743111045419,-567.80152106,0.0002897,2]
[356752764,1743111045431,-297.1452025,0.0002897,2]
[356752778,1743111294572,-810.0,0.00015969,2]
[356752798,1743112231428,-227.24373513,0.00017277,2]
[356752799,1743112231437,-150.0,0.00017302,2]
[356752800,1743112231446,-101.07214873,0.00017376,2]
[356752801,1743112231458,-198.92785127,0.00017376,2]
[356752802,1743112231468,-2038.0,0.00017377,2]
[356752803,1743112231477,-1282.0,0.00017377,2]
[356752804,1743112231487,-345.17660838,0.00017377,2]
[356752805,1743112231540,-123.49939162,0.00017377,2]
[356752806,1743112231550,-1011.227,0.00017377,2]
[356752807,1743112231560,-1213.60351038,0.00017377,2]
[356752808,1743112231711,-180.39648962,0.00017377,2]
[356752809,1743112231721,-535.767,0.00017377,2]
[356752810,1743112231731,-554.469,0.00017377,2]
[356752811,1743112231740,-3944.0,0.00017377,2]
[356752812,1743112231749,-164.44,0.000186,2]
[356752813,1743112231759,-275.64324695,0.000189,2]
[356752814,1743112231768,-315.0,0.00018971,2]
[356752815,1743112231779,-150.0,0.00019005,2]
[356752816,1743112231789,-150.0,0.00019005,2]
[356752817,1743112231797,-2038.0,0.00020377,2]
[356752818,1743112231807,-1282.0,0.00020377,2]
[356752819,1743112231816,-3944.0,0.00020377,2]
[356752820,1743112231826,-227.24373511,0.00022686,2]
[356752821,1743112231835,-1282.0,0.00023377,2]
[356752822,1743112231844,-3944.0,0.00023377,2]
[356752823,1743112231854,-404.63599282,0.0002629,2]
[356752824,1743112231866,-299.99,0.0002629,2]
[356752825,1743112231878,-168.10400718,0.0002629,2]
[356752826,1743112231887,-251.27627168,0.00026377,2]
[356752827,1743112231899,-141.21172832,0.00026377,2]
[356752828,1743112231907,-281.12199259,0.00026377,2]
[356752880,1743112237393,-298.0,0.00026377,2]
[356752881,1743112237405,-543.57528938,0.00026377,2]
[356752882,1743112237417,-2821.30271803,0.00026377,2]
[356752883,1743112237426,-200.4,0.00026849,2]
[356752884,1743112237436,-150.583,0.00026958,2]
[356752885,1743112237445,-299.99,0.00026958,12]
[356752886,1743112237455,-250.0,0.00026979,2]
[356752887,1743112237464,-150.0,0.00027059,2]
[356752888,1743112237474,-1000.0,0.00027222,2]
[356752889,1743112237483,-200.0,0.00027355,2]
[356752890,1743112237492,-1500.0,0.00027397,60]
[356752891,1743112237501,-500.0,0.00027655,2]
[356752892,1743112237511,-193.54,0.00027715,30]
[356752893,1743112237520,-151.538,0.00027722,17]
[356752894,1743112237529,-484.75185144,0.00028,2]
[356752895,1743112237541,-5105.70874728,0.00028,2]
[356752903,1743112239714,-150.0,0.00027576,7]
[356752904,1743112239723,-727.89715726,0.00028,2]
[356752905,1743112239828,-3334.23999992,0.00028,2]
[356752906,1743112239839,-489.23,0.00028,2]
[356752907,1743112239850,-563.9304405,0.00028,2]
[356752912,1743112245466,-30269.5058126,0.00028,2]
[356752913,1743112245476,-227.24373511,0.00028095,2]
[356752914,1743112245486,-8997.42193789,0.00028195,2]
[356752915,1743112245687,-264.71400384,0.00028195,2]
[356752917,1743113431578,-455.85,0.00017277,2]
[356752918,1743113431589,-2390.37141977,0.00017277,2]
[356752919,1743113431668,-622.91559,0.00017277,2]
[356752920,1743113431809,-2445.45506347,0.00017277,2]
[356752921,1743113431819,-46.26627724,0.00017376,2]
[356752922,1743113431832,-453.73372276,0.00017376,2]
[356752923,1743113431841,-475.35916738,0.00017376,2]
[356752924,1743113431901,-24.64083262,0.00017376,2]
[356752925,1743113431913,-500.0,0.00017376,2]
[356752926,1743113431922,-500.0,0.00017376,2]
[356752927,1743113431931,-430.0,0.00017376,2]
[356752928,1743113431941,-150.0,0.00017376,2]
[356752929,1743113431953,-279.78308448,0.00017377,2]
[356752930,1743113431965,-738.44822419,0.00017377,2]
[356752931,1743113431977,-1863.88495208,0.00017377,2]
[356752932,1743113431991,-664.24310131,0.00017377,2]
[356752933,1743113432014,-401.7502562,0.00017377,2]
[356752999,1743113437510,-4400.05,0.00017377,2]
[356753000,1743113437522,-3856.67487839,0.00017377,2]
[356753001,1743113437581,-789.611823,0.00017377,2]
[356753003,1743113439986,-607.79639217,0.00017377,2]
[356753011,1743113442814,-646.66100289,0.00017377,2]
[356753014,1743113443861,-2346.37994327,0.00017377,2]
[356753016,1743113445755,-40123.17435431,0.00017377,2]
[356753023,1743114009457,804.20006588,0.0003254,30]
[356753032,1743114355074,-1103.11682169,0.0001489,2]
[356753036,1743114475244,3348.71994984,0.0001,2]
[356753061,1743114632056,-4272.26878054,0.0001489,2]
[356753062,1743114632067,-150.0,0.00014931,2]
[356753063,1743114632077,-539.80639723,0.00014973,2]
[356753064,1743114632087,-365.67065678,0.0001499,2]
[356753065,1743114632097,-270.0,0.00014999,2]
[356753066,1743114632106,-92214.27104607,0.00015,2]
[356753202,1743114886159,-153.0726,0.000149,2]
[356753204,1743114949613,-523.02877831,0.000149,2]
[356753205,1743114983538,-150.0,0.000148,2]
[356753206,1743115024585,271.05976238,0.0003254,30]
[356753209,1743115095400,-153.0726,0.000148,2]
[356753210,1743115343155,-150.0,0.00014575,2]
[356753222,1743115738944,-225.4132823,0.00014527,2]
[356753238,1743115832287,-291.63362622,0.00014527,2]
[356753239,1743115832299,-90.42047378,0.00014527,2]